[Event "*** Titled Tuesday Blitz"]
[Site "Chess.com"]
[Date "2020.01.07"]
[Round "5"]
[White "nurmiTV"]
[Black "FredyMatsuura"]
[Result "1-0"]
[WhiteElo "2537"]
[BlackElo "2242"]
[TimeControl "180+2"]
[EndTime "14:10:26 PST"]
[Termination "nurmiTV won on time"]

1. c4 {[%clk 0:03:01.9]} 1... Nf6 {[%clk 0:03:00.3]} 2. Nc3 {[%clk 0:03:01.8]}
2... e6 {[%clk 0:02:59.9]} 3. e4 {[%clk 0:03:02.5]} 3... c5 {[%clk 0:03:00.5]}
4. e5 {[%clk 0:03:01.5]} 4... Ng8 {[%clk 0:03:01.3]} 5. f4 {[%clk 0:03:01.3]}
5... Nc6 {[%clk 0:03:01.2]} 6. Nf3 {[%clk 0:03:01.6]} 6... d6 {[%clk 0:03:02.5]}
7. b3 {[%clk 0:02:54.7]} 7... dxe5 {[%clk 0:03:02.9]} 8. fxe5 {[%clk 0:02:56.6]}
8... Nge7 {[%clk 0:02:58.7]} 9. Bb2 {[%clk 0:02:54]} 9... Ng6 {[%clk 0:02:59.5]}
10. Ne4 {[%clk 0:02:47]} 10... Qc7 {[%clk 0:02:52.7]} 11. Nd6+ {[%clk
0:02:26.5]} 11... Bxd6 {[%clk 0:02:52]} 12. exd6 {[%clk 0:02:28.4]} 12... Qxd6
{[%clk 0:02:53.3]} 13. Bxg7 {[%clk 0:02:29.3]} 13... Rg8 {[%clk 0:02:54.4]} 14.
Bc3 {[%clk 0:02:29]} 14... Nd4 {[%clk 0:02:52.9]} 15. g3 {[%clk 0:02:22.2]}
15... e5 {[%clk 0:02:19.7]} 16. Bxd4 {[%clk 0:02:18.7]} 16... exd4 {[%clk
0:02:10.7]} 17. Qe2+ {[%clk 0:02:15.7]} 17... Be6 {[%clk 0:02:11.2]} 18. Bh3
{[%clk 0:02:07.6]} 18... O-O-O {[%clk 0:02:06.8]} 19. Bxe6+ {[%clk 0:02:07.9]}
19... fxe6 {[%clk 0:02:07.2]} 20. O-O-O {[%clk 0:02:05.5]} 20... d3 {[%clk
0:02:00.1]} 21. Qe4 {[%clk 0:02:04.3]} 21... e5 {[%clk 0:01:55.2]} 22. Rde1
{[%clk 0:02:03.2]} 22... Rge8 {[%clk 0:01:54.2]} 23. h4 {[%clk 0:02:00.9]} 23...
Qa6 {[%clk 0:01:43.1]} 24. Kb2 {[%clk 0:01:53.5]} 24... Qa5 {[%clk 0:01:41.5]}
25. h5 {[%clk 0:01:47.5]} 25... Nf8 {[%clk 0:01:33.3]} 26. Rh2 {[%clk
0:01:37.4]} 26... Ne6 {[%clk 0:01:27.5]} 27. Qg4 {[%clk 0:01:33]} 27... Kb8
{[%clk 0:01:24.3]} 28. Rxe5 {[%clk 0:01:32]} 28... Nd4 {[%clk 0:00:33.3]} 29.
Rxe8 {[%clk 0:01:25.8]} 29... Rxe8 {[%clk 0:00:34.7]} 30. Nxd4 {[%clk
0:01:24.9]} 30... cxd4 {[%clk 0:00:36]} 31. Qxd4 {[%clk 0:01:20.3]} 31... Re2
{[%clk 0:00:35.3]} 32. Rxe2 {[%clk 0:01:15.2]} 32... dxe2 {[%clk 0:00:35.9]} 33.
Qh8+ {[%clk 0:01:10.5]} 33... Kc7 {[%clk 0:00:36]} 34. Qxh7+ {[%clk 0:01:10.5]}
34... Kc8 {[%clk 0:00:35.2]} 35. Qg8+ {[%clk 0:01:03.9]} 35... Qd8 {[%clk
0:00:19.7]} 36. Qe6+ {[%clk 0:01:02.7]} 36... Kb8 {[%clk 0:00:20.6]} 37. Qxe2
{[%clk 0:01:01.3]} 37... Qh8+ {[%clk 0:00:22]} 38. Kb1 {[%clk 0:00:57]} 38...
Qh7+ {[%clk 0:00:22.3]} 39. d3 {[%clk 0:00:57.2]} 39... Qg7 {[%clk 0:00:20.6]}
40. g4 {[%clk 0:00:56.8]} 40... Qg5 {[%clk 0:00:20.3]} 41. Qe8+ {[%clk 0:00:53]}
41... Kc7 {[%clk 0:00:21.7]} 42. Qf7+ {[%clk 0:00:52.6]} 42... Kb8 {[%clk
0:00:20.9]} 43. Qf5 {[%clk 0:00:49.8]} 43... Qd2 {[%clk 0:00:18.8]} 44. Qf1
{[%clk 0:00:41.8]} 44... Qg5 {[%clk 0:00:16.9]} 45. Qe2 {[%clk 0:00:32.9]} 45...
a5 {[%clk 0:00:15.9]} 46. d4 {[%clk 0:00:29]} 46... Ka8 {[%clk 0:00:10.9]} 47.
a3 {[%clk 0:00:22.3]} 47... Qf4 {[%clk 0:00:10.5]} 48. d5 {[%clk 0:00:18.9]}
48... Qd4 {[%clk 0:00:11.1]} 49. h6 {[%clk 0:00:17.5]} 49... Qg1+ {[%clk
0:00:05.9]} 50. Ka2 {[%clk 0:00:17.4]} 50... Qh1 {[%clk 0:00:06.4]} 51. g5
{[%clk 0:00:17.5]} 51... Qh4 {[%clk 0:00:06.8]} 52. Qg2 {[%clk 0:00:17.2]} 52...
a4 {[%clk 0:00:03.7]} 53. g6 {[%clk 0:00:17]} 53... axb3+ {[%clk 0:00:04.2]} 54.
Kxb3 {[%clk 0:00:18.9]} 1-0

[Event "*** Titled Tuesday Blitz"]
[Site "Chess.com"]
[Date "2020.01.07"]
[Round "5"]
[White "Mikhail_Golubev"]
[Black "albano87"]
[Result "0-1"]
[WhiteElo "2598"]
[BlackElo "2105"]
[TimeControl "180+2"]
[EndTime "14:10:36 PST"]
[Termination "albano87 won by resignation"]

1. e4 {[%clk 0:03:01.9]} 1... c5 {[%clk 0:02:59.7]} 2. Nf3 {[%clk 0:03:02.7]}
2... Nc6 {[%clk 0:03:00.6]} 3. Nc3 {[%clk 0:03:03.4]} 3... d6 {[%clk 0:03:01.5]}
4. d4 {[%clk 0:03:04.2]} 4... cxd4 {[%clk 0:03:01.3]} 5. Nxd4 {[%clk 0:03:04.9]}
5... Nf6 {[%clk 0:03:02.3]} 6. Bc4 {[%clk 0:03:04.7]} 6... Bd7 {[%clk
0:03:02.3]} 7. Bb3 {[%clk 0:03:01]} 7... Rc8 {[%clk 0:03:02.3]} 8. f3 {[%clk
0:02:47.5]} 8... a6 {[%clk 0:03:00.4]} 9. Bg5 {[%clk 0:02:22.8]} 9... Qa5 {[%clk
0:02:51.4]} 10. Bxf6 {[%clk 0:02:03.9]} 10... gxf6 {[%clk 0:02:51.7]} 11. Qd2
{[%clk 0:02:02.4]} 11... h5 {[%clk 0:02:42.1]} 12. f4 {[%clk 0:01:59.6]} 12...
Bh6 {[%clk 0:02:26.3]} 13. Nde2 {[%clk 0:01:50.3]} 13... Be6 {[%clk 0:01:55.2]}
14. O-O {[%clk 0:01:44.6]} 14... Rg8 {[%clk 0:01:47.6]} 15. Kh1 {[%clk
0:01:45.2]} 15... h4 {[%clk 0:01:44.7]} 16. Bxe6 {[%clk 0:01:10.6]} 16... fxe6
{[%clk 0:01:45.6]} 17. Qd3 {[%clk 0:01:11.1]} 17... Qh5 {[%clk 0:01:39.8]} 18.
Qh3 {[%clk 0:01:10.2]} 18... Kf7 {[%clk 0:01:31.1]} 19. f5 {[%clk 0:00:39.6]}
19... e5 {[%clk 0:01:29.8]} 20. Qd3 {[%clk 0:00:35.7]} 20... Nb4 {[%clk
0:01:22.9]} 21. Qd1 {[%clk 0:00:34.7]} 21... Qg4 {[%clk 0:01:07.9]} 22. Rg1
{[%clk 0:00:19.9]} 22... Be3 {[%clk 0:01:08.2]} 23. h3 {[%clk 0:00:20.7]} 23...
Qg5 {[%clk 0:01:06.4]} 24. a3 {[%clk 0:00:16.9]} 24... Bxg1 {[%clk 0:01:07.3]}
25. Qxg1 {[%clk 0:00:16.9]} 25... Nxc2 {[%clk 0:01:08.7]} 26. Rf1 {[%clk
0:00:12.4]} 26... Qe3 {[%clk 0:00:49.2]} 27. Rf2 {[%clk 0:00:12.1]} 27... Nd4
{[%clk 0:00:29.8]} 28. Qf1 {[%clk 0:00:06.9]} 28... Nxe2 {[%clk 0:00:28.6]} 29.
Rxe2 {[%clk 0:00:07.9]} 29... Qd3 {[%clk 0:00:30]} 30. Qe1 {[%clk 0:00:08.1]}
30... Rg3 {[%clk 0:00:30.3]} 31. Rd2 {[%clk 0:00:08.3]} 31... Rxh3+ {[%clk
0:00:28.6]} 32. gxh3 {[%clk 0:00:03.7]} 32... Qxh3+ {[%clk 0:00:29.5]} 33. Rh2
{[%clk 0:00:04.6]} 33... Qf3+ {[%clk 0:00:30.2]} 34. Rg2 {[%clk 0:00:05.4]}
34... h3 {[%clk 0:00:30.6]} 35. Qg3 {[%clk 0:00:04.9]} 35... Qxg2+ {[%clk
0:00:30.8]} 36. Qxg2 {[%clk 0:00:06]} 36... hxg2+ {[%clk 0:00:30.7]} 37. Kxg2
{[%clk 0:00:07.2]} 37... b5 {[%clk 0:00:27]} 38. Kf2 {[%clk 0:00:07.5]} 38...
Rc4 {[%clk 0:00:23.5]} 39. Ke3 {[%clk 0:00:07.4]} 39... b4 {[%clk 0:00:24.8]}
40. axb4 {[%clk 0:00:06.2]} 40... Rxb4 {[%clk 0:00:25.9]} 41. Nd1 {[%clk
0:00:06.3]} 41... d5 {[%clk 0:00:23.4]} 42. exd5 {[%clk 0:00:06.4]} 42... Rd4
{[%clk 0:00:24.7]} 43. Nc3 {[%clk 0:00:07.4]} 43... Rb4 {[%clk 0:00:25.4]} 44.
Ne4 {[%clk 0:00:06.9]} 44... Rb3+ {[%clk 0:00:20.9]} 45. Ke2 {[%clk 0:00:06.4]}
45... Rxb2+ {[%clk 0:00:22.2]} 46. Kd3 {[%clk 0:00:07.6]} 46... a5 {[%clk
0:00:22.9]} 47. Kc3 {[%clk 0:00:08.5]} 47... Rb4 {[%clk 0:00:23.7]} 48. Nc5
{[%clk 0:00:08.6]} 48... Rf4 {[%clk 0:00:23]} 49. Nb7 {[%clk 0:00:06.7]} 49...
a4 {[%clk 0:00:22.6]} 50. Nd8+ {[%clk 0:00:06.2]} 50... Ke8 {[%clk 0:00:22]} 51.
Ne6 {[%clk 0:00:07.1]} 51... Kd7 {[%clk 0:00:21.4]} 0-1

[Event "*** Titled Tuesday Blitz"]
[Site "Chess.com"]
[Date "2020.01.07"]
[Round "5"]
[White "OparinGrigoriy"]
[Black "Borsuk_Konstantin"]
[Result "1/2-1/2"]
[WhiteElo "3029"]
[BlackElo "2496"]
[TimeControl "180+2"]
[EndTime "14:10:37 PST"]
[Termination "Game drawn by agreement"]

1. Nf3 {[%clk 0:03:01.9]} 1... b6 {[%clk 0:02:57.1]} 2. g3 {[%clk 0:03:03.8]}
2... Bb7 {[%clk 0:02:58.3]} 3. Bg2 {[%clk 0:03:05.7]} 3... Nf6 {[%clk
0:02:59.4]} 4. d4 {[%clk 0:03:07.3]} 4... e6 {[%clk 0:03:00.2]} 5. c4 {[%clk
0:03:08.9]} 5... Be7 {[%clk 0:03:01.3]} 6. O-O {[%clk 0:03:10.5]} 6... O-O
{[%clk 0:03:02.4]} 7. Nc3 {[%clk 0:03:12.2]} 7... Ne4 {[%clk 0:03:03.7]} 8. Bd2
{[%clk 0:03:13]} 8... f5 {[%clk 0:03:03.5]} 9. Qc2 {[%clk 0:03:13.8]} 9... Nxd2
{[%clk 0:03:02.4]} 10. Nxd2 {[%clk 0:03:11.5]} 10... Bxg2 {[%clk 0:02:59.1]} 11.
Kxg2 {[%clk 0:03:13.4]} 11... Qe8 {[%clk 0:02:37.3]} 12. Nf3 {[%clk 0:03:14.3]}
12... d6 {[%clk 0:02:30.3]} 13. e4 {[%clk 0:03:13.3]} 13... f4 {[%clk
0:02:29.8]} 14. Rae1 {[%clk 0:03:13.1]} 14... c6 {[%clk 0:02:20.9]} 15. e5
{[%clk 0:03:09.5]} 15... d5 {[%clk 0:02:20.8]} 16. Ne2 {[%clk 0:03:09.6]} 16...
g5 {[%clk 0:02:16.9]} 17. gxf4 {[%clk 0:03:04.2]} 17... gxf4 {[%clk 0:01:58.5]}
18. Kh1 {[%clk 0:03:02.8]} 18... Qh5 {[%clk 0:01:50.9]} 19. Qd3 {[%clk
0:02:36.5]} 19... dxc4 {[%clk 0:01:31.8]} 20. Qe4 {[%clk 0:02:36]} 20... Qf5
{[%clk 0:01:32.4]} 21. Rg1+ {[%clk 0:02:34.5]} 21... Kh8 {[%clk 0:01:32.4]} 22.
Nc3 {[%clk 0:02:33.2]} 22... b5 {[%clk 0:01:23.1]} 23. Qxf5 {[%clk 0:02:01.1]}
23... Rxf5 {[%clk 0:01:22.3]} 24. Ne4 {[%clk 0:02:02.7]} 24... Nd7 {[%clk
0:01:19.4]} 25. Nd6 {[%clk 0:02:03.9]} 25... Bxd6 {[%clk 0:00:56.1]} 26. exd6
{[%clk 0:02:05.7]} 26... Re8 {[%clk 0:00:51.2]} 27. Ne5 {[%clk 0:02:06.5]} 27...
Nxe5 {[%clk 0:00:33.4]} 28. dxe5 {[%clk 0:02:08.4]} 28... f3 {[%clk 0:00:33.4]}
29. Rg3 {[%clk 0:02:06.1]} 29... a5 {[%clk 0:00:31.3]} 30. Re3 {[%clk
0:02:06.5]} 30... Ref8 {[%clk 0:00:32.2]} 31. Kg1 {[%clk 0:02:04.1]} 31... Rf4
{[%clk 0:00:33.1]} 32. Kf1 {[%clk 0:02:05.3]} 32... Rd4 {[%clk 0:00:30.9]} 33.
Rgxf3 {[%clk 0:02:05.7]} 33... Rxf3 {[%clk 0:00:25.5]} 34. Rxf3 {[%clk
0:02:07.6]} 34... Kg7 {[%clk 0:00:26.4]} 35. Ke2 {[%clk 0:02:03]} 35... b4
{[%clk 0:00:21.3]} 36. Rf6 {[%clk 0:01:44.7]} 36... Re4+ {[%clk 0:00:20.7]} 37.
Kf1 {[%clk 0:01:39.7]} 37... Rxe5 {[%clk 0:00:21.6]} 38. d7 {[%clk 0:01:40.4]}
38... Rd5 {[%clk 0:00:22.4]} 39. Rxe6 {[%clk 0:01:41.9]} 39... Rxd7 {[%clk
0:00:22.8]} 40. Rxc6 {[%clk 0:01:43.6]} 40... Rd2 {[%clk 0:00:23.6]} 41. Rxc4
{[%clk 0:01:41]} 41... Rxb2 {[%clk 0:00:24.6]} 42. a3 {[%clk 0:01:42.5]} 42...
bxa3 {[%clk 0:00:10.9]} 43. Ra4 {[%clk 0:01:43.7]} 43... Rb1+ {[%clk 0:00:07.6]}
44. Kg2 {[%clk 0:01:43.4]} 44... Ra1 {[%clk 0:00:08.6]} 45. Rxa5 {[%clk
0:01:43]} 45... a2 {[%clk 0:00:09.1]} 46. Kf3 {[%clk 0:01:43.3]} 46... Rh1
{[%clk 0:00:08.5]} 47. Rxa2 {[%clk 0:01:41.6]} 47... Rxh2 {[%clk 0:00:09.2]} 48.
Kg3 {[%clk 0:01:42.3]} 48... Rh6 {[%clk 0:00:09.7]} 49. f4 {[%clk 0:01:43.8]}
49... Rg6+ {[%clk 0:00:11.1]} 50. Kf3 {[%clk 0:01:45]} 50... h5 {[%clk
0:00:11.9]} 51. Ke4 {[%clk 0:01:46.6]} 51... h4 {[%clk 0:00:12.3]} 52. Kf5
{[%clk 0:01:45.3]} 52... Rh6 {[%clk 0:00:12.8]} 53. Kg5 {[%clk 0:01:46]} 53...
Rb6 {[%clk 0:00:10.1]} 54. Kxh4 {[%clk 0:01:47]} 54... Kf6 {[%clk 0:00:11.3]}
55. Kg4 {[%clk 0:01:48.3]} 55... Rc6 {[%clk 0:00:12.5]} 56. Rh2 {[%clk
0:01:49.6]} 56... Kg7 {[%clk 0:00:12]} 57. Rh5 {[%clk 0:01:50.5]} 57... Rb6
{[%clk 0:00:12.9]} 58. Kg5 {[%clk 0:01:50.9]} 58... Rb5+ {[%clk 0:00:12.6]} 59.
f5 {[%clk 0:01:51.8]} 59... Rb6 {[%clk 0:00:13.7]} 60. Rh4 {[%clk 0:01:50.8]}
60... Rc6 {[%clk 0:00:14.5]} 61. Ra4 {[%clk 0:01:51.6]} 61... Rb6 {[%clk
0:00:14.7]} 62. Ra7+ {[%clk 0:01:52.6]} 62... Kf8 {[%clk 0:00:15.8]} 63. Rd7
{[%clk 0:01:53.1]} 63... Rc6 {[%clk 0:00:16.7]} 64. Rh7 {[%clk 0:01:53.2]} 64...
Ra6 {[%clk 0:00:17.5]} 65. Rb7 {[%clk 0:01:53.7]} 65... Rc6 {[%clk 0:00:18]} 66.
Kf4 {[%clk 0:01:54.6]} 66... Ra6 {[%clk 0:00:18.4]} 67. Ke5 {[%clk 0:01:56]}
67... Ra5+ {[%clk 0:00:18.8]} 68. Kf6 {[%clk 0:01:56.5]} 68... Ra6+ {[%clk
0:00:19.8]} 69. Kg5 {[%clk 0:01:58.1]} 69... Rc6 {[%clk 0:00:20.6]} 70. Ra7
{[%clk 0:01:59.5]} 70... Rb6 {[%clk 0:00:21.4]} 71. Kf4 {[%clk 0:02:01.2]} 71...
Rc6 {[%clk 0:00:21.8]} 72. Ke5 {[%clk 0:02:02.7]} 72... Rb6 {[%clk 0:00:22.7]}
73. Kd5 {[%clk 0:02:04.2]} 73... Rb5+ {[%clk 0:00:22]} 74. Ke6 {[%clk
0:02:05.7]} 74... Rb6+ {[%clk 0:00:23.1]} 75. Ke5 {[%clk 0:02:07.3]} 75... Rb5+
{[%clk 0:00:23.7]} 76. Kf6 {[%clk 0:02:09]} 76... Rb6+ {[%clk 0:00:24.8]} 77.
Kg5 {[%clk 0:02:10.7]} 77... Rc6 {[%clk 0:00:26]} 78. Kh5 {[%clk 0:02:08.9]}
78... Rb6 {[%clk 0:00:26.7]} 79. Ra5 {[%clk 0:02:10]} 79... Rc6 {[%clk
0:00:27.6]} 80. Ra1 {[%clk 0:02:09.7]} 80... Rb6 {[%clk 0:00:28.6]} 81. Rg1
{[%clk 0:02:11.3]} 81... Ra6 {[%clk 0:00:29.1]} 82. Rg6 {[%clk 0:02:12.9]} 82...
Ra1 {[%clk 0:00:22.4]} 83. Kg5 {[%clk 0:02:13.5]} 83... Kf7 {[%clk 0:00:23]} 84.
Rf6+ {[%clk 0:02:14.5]} 84... Kg7 {[%clk 0:00:24.1]} 85. Rg6+ {[%clk 0:02:14.7]}
85... Kf7 {[%clk 0:00:24.7]} 86. Rb6 {[%clk 0:02:16.3]} 86... Rg1+ {[%clk
0:00:24.8]} 1/2-1/2

[Event "*** Titled Tuesday Blitz"]
[Site "Chess.com"]
[Date "2020.01.07"]
[Round "5"]
[White "hazy13"]
[Black "Schachmalanders"]
[Result "1-0"]
[WhiteElo "2217"]
[BlackElo "2260"]
[TimeControl "180+2"]
[EndTime "14:10:37 PST"]
[Termination "hazy13 won by resignation"]

1. d4 {[%clk 0:03:01.9]} 1... d5 {[%clk 0:02:59]} 2. c4 {[%clk 0:03:02.7]} 2...
e6 {[%clk 0:02:59.4]} 3. Nf3 {[%clk 0:03:03.5]} 3... c6 {[%clk 0:03:00.8]} 4.
Qc2 {[%clk 0:03:03.4]} 4... f5 {[%clk 0:02:59.8]} 5. g3 {[%clk 0:03:03.5]} 5...
Nf6 {[%clk 0:03:00.9]} 6. Bg2 {[%clk 0:03:05]} 6... Bd6 {[%clk 0:03:02.2]} 7.
O-O {[%clk 0:03:06.1]} 7... O-O {[%clk 0:03:03.5]} 8. Nbd2 {[%clk 0:03:06.4]}
8... b6 {[%clk 0:03:04.8]} 9. Rb1 {[%clk 0:03:03.1]} 9... Ne4 {[%clk 0:03:05.3]}
10. b4 {[%clk 0:03:02.3]} 10... Bb7 {[%clk 0:03:06.2]} 11. c5 {[%clk 0:03:00.5]}
11... Bc7 {[%clk 0:03:03]} 12. a4 {[%clk 0:02:49.8]} 12... a6 {[%clk 0:02:47.5]}
13. Nxe4 {[%clk 0:02:12.1]} 13... fxe4 {[%clk 0:02:47.2]} 14. Ne5 {[%clk
0:02:13]} 14... b5 {[%clk 0:02:47.9]} 15. axb5 {[%clk 0:02:09.2]} 15... axb5
{[%clk 0:02:48.6]} 16. Bd2 {[%clk 0:01:51.4]} 16... Nd7 {[%clk 0:02:48.3]} 17.
Nxd7 {[%clk 0:01:33.1]} 17... Qxd7 {[%clk 0:02:50.2]} 18. Ra1 {[%clk 0:01:31]}
18... Qf7 {[%clk 0:02:45.9]} 19. Be3 {[%clk 0:01:25]} 19... e5 {[%clk
0:02:36.1]} 20. Qb2 {[%clk 0:01:17.7]} 20... Qf6 {[%clk 0:02:36]} 21. Rxa8
{[%clk 0:01:13.9]} 21... Rxa8 {[%clk 0:02:35.6]} 22. Ra1 {[%clk 0:01:14.3]}
22... Qe7 {[%clk 0:01:23.3]} 23. Rxa8+ {[%clk 0:01:02.7]} 23... Bxa8 {[%clk
0:01:24.5]} 24. Qa1 {[%clk 0:00:58.3]} 24... Bb7 {[%clk 0:01:24]} 25. Bh3 {[%clk
0:00:57.9]} 25... Qe8 {[%clk 0:01:18.4]} 26. Qa7 {[%clk 0:00:41.9]} 26... Qa8
{[%clk 0:01:18.4]} 27. Qxa8+ {[%clk 0:00:35.2]} 27... Bxa8 {[%clk 0:01:20.3]}
28. Bc8 {[%clk 0:00:26.7]} 28... Kf7 {[%clk 0:01:20.5]} 29. Kg2 {[%clk
0:00:20.9]} 29... h6 {[%clk 0:01:21.7]} 30. Kh3 {[%clk 0:00:21.5]} 30... Ke7
{[%clk 0:01:23.1]} 31. Kh4 {[%clk 0:00:19.6]} 31... Kf6 {[%clk 0:01:18.8]} 32.
g4 {[%clk 0:00:15.4]} 32... exd4 {[%clk 0:01:18.2]} 33. Bxd4+ {[%clk 0:00:16.2]}
33... Be5 {[%clk 0:01:19.7]} 34. e3 {[%clk 0:00:09.1]} 34... Bxd4 {[%clk
0:00:58.5]} 35. exd4 {[%clk 0:00:11]} 35... Kg6 {[%clk 0:00:59.7]} 36. h3 {[%clk
0:00:08]} 36... Kf6 {[%clk 0:01:00.6]} 37. Kh5 {[%clk 0:00:08.6]} 37... Kf7
{[%clk 0:01:01.2]} 38. h4 {[%clk 0:00:08.8]} 38... Kf6 {[%clk 0:00:59.8]} 39.
g5+ {[%clk 0:00:09.5]} 39... hxg5 {[%clk 0:01:00.8]} 40. hxg5+ {[%clk
0:00:11.4]} 40... Kf7 {[%clk 0:01:02.1]} 41. Bf5 {[%clk 0:00:10.2]} 41... Bb7
{[%clk 0:01:02.6]} 42. Bd7 {[%clk 0:00:05.6]} 42... Ke7 {[%clk 0:01:02.5]} 43.
Bf5 {[%clk 0:00:05.8]} 43... Kf7 {[%clk 0:01:03.8]} 44. Bg6+ {[%clk 0:00:06.5]}
44... Ke6 {[%clk 0:01:03.6]} 45. Be8 {[%clk 0:00:07.8]} 45... Kf5 {[%clk
0:01:04.7]} 46. Bd7+ {[%clk 0:00:07.6]} 46... Kf4 {[%clk 0:01:05.1]} 47. Kg6
{[%clk 0:00:08.6]} 47... Ba8 {[%clk 0:00:58.3]} 48. Be6 {[%clk 0:00:03.2]} 48...
Bb7 {[%clk 0:00:57.9]} 49. Bd7 {[%clk 0:00:03.9]} 49... Ba8 {[%clk 0:00:58.6]}
50. Bc8 {[%clk 0:00:05.5]} 50... Kf3 {[%clk 0:00:26.8]} 51. Kxg7 {[%clk
0:00:07.1]} 51... Kxf2 {[%clk 0:00:28.2]} 52. Bg4 {[%clk 0:00:08.8]} 52... e3
{[%clk 0:00:26.7]} 53. Kf6 {[%clk 0:00:08]} 53... Bb7 {[%clk 0:00:28.1]} 54. g6
{[%clk 0:00:08.6]} 54... Bc8 {[%clk 0:00:29.6]} 55. Bh5 {[%clk 0:00:08.5]} 55...
e2 {[%clk 0:00:11.7]} 56. Bxe2 {[%clk 0:00:08.7]} 56... Kxe2 {[%clk 0:00:13.2]}
57. g7 {[%clk 0:00:10.4]} 57... Kd3 {[%clk 0:00:14.6]} 58. g8=Q {[%clk
0:00:11.4]} 58... Kxd4 {[%clk 0:00:16.2]} 59. Qxc8 {[%clk 0:00:12.6]} 59... Kc4
{[%clk 0:00:17.8]} 60. Qxc6 {[%clk 0:00:13.8]} 1-0

[Event "*** Titled Tuesday Blitz"]
[Site "Chess.com"]
[Date "2020.01.07"]
[Round "5"]
[White "SCIM"]
[Black "Lifeek"]
[Result "1/2-1/2"]
[WhiteElo "2461"]
[BlackElo "2237"]
[TimeControl "180+2"]
[EndTime "14:10:47 PST"]
[Termination "Game drawn - insufficient material"]

1. d4 {[%clk 0:03:01.9]} 1... Nf6 {[%clk 0:02:57.8]} 2. c4 {[%clk 0:02:58.1]}
2... e6 {[%clk 0:02:57]} 3. g3 {[%clk 0:02:59.1]} 3... d5 {[%clk 0:02:52.6]} 4.
Nf3 {[%clk 0:02:59.7]} 4... c5 {[%clk 0:02:47.7]} 5. cxd5 {[%clk 0:02:57.6]}
5... Nxd5 {[%clk 0:02:43.3]} 6. Bg2 {[%clk 0:02:56.2]} 6... Nc6 {[%clk
0:02:39.5]} 7. O-O {[%clk 0:02:55.6]} 7... Be7 {[%clk 0:02:30.6]} 8. dxc5 {[%clk
0:02:51.7]} 8... Bxc5 {[%clk 0:02:27.6]} 9. Qc2 {[%clk 0:02:50.5]} 9... Be7
{[%clk 0:02:25]} 10. a3 {[%clk 0:02:50.1]} 10... O-O {[%clk 0:02:07.3]} 11. Rd1
{[%clk 0:02:49.1]} 11... Bd7 {[%clk 0:01:50.6]} 12. e4 {[%clk 0:02:46.6]} 12...
Nb6 {[%clk 0:01:43.4]} 13. Nc3 {[%clk 0:02:46.7]} 13... Qc8 {[%clk 0:01:30.8]}
14. Bg5 {[%clk 0:02:35.4]} 14... Rd8 {[%clk 0:01:17]} 15. h4 {[%clk 0:02:32.1]}
15... h6 {[%clk 0:01:17.3]} 16. Bxe7 {[%clk 0:02:30.8]} 16... Nxe7 {[%clk
0:01:17.9]} 17. Rac1 {[%clk 0:02:15.7]} 17... Be8 {[%clk 0:01:08.9]} 18. Rxd8
{[%clk 0:01:59.3]} 18... Qxd8 {[%clk 0:01:10.8]} 19. Rd1 {[%clk 0:02:00.7]}
19... Qc7 {[%clk 0:01:06.8]} 20. Qd2 {[%clk 0:01:37.8]} 20... Nc4 {[%clk
0:01:06.5]} 21. Qe2 {[%clk 0:01:36]} 21... b5 {[%clk 0:01:01.6]} 22. Nd4 {[%clk
0:01:33.5]} 22... a6 {[%clk 0:01:01.8]} 23. Rc1 {[%clk 0:01:19.8]} 23... Qb6
{[%clk 0:00:56]} 24. Nf3 {[%clk 0:01:18]} 24... Rd8 {[%clk 0:00:56]} 25. Rd1
{[%clk 0:00:54.1]} 25... Rxd1+ {[%clk 0:00:54.9]} 26. Nxd1 {[%clk 0:00:56]}
26... Nc6 {[%clk 0:00:55.8]} 27. Qd3 {[%clk 0:00:48.3]} 27... N6e5 {[%clk
0:00:55.8]} 28. Nxe5 {[%clk 0:00:47.5]} 28... Nxe5 {[%clk 0:00:57.7]} 29. Qe3
{[%clk 0:00:46.3]} 29... Qxe3 {[%clk 0:00:57.1]} 30. Nxe3 {[%clk 0:00:46.3]}
30... Bc6 {[%clk 0:00:55.9]} 31. f4 {[%clk 0:00:43.9]} 31... Nd3 {[%clk
0:00:57]} 32. b4 {[%clk 0:00:40.4]} 32... Kf8 {[%clk 0:00:50.5]} 33. e5 {[%clk
0:00:38.2]} 33... Bxg2 {[%clk 0:00:46.9]} 34. Kxg2 {[%clk 0:00:38.8]} 34... f6
{[%clk 0:00:48.2]} 35. exf6 {[%clk 0:00:38.6]} 35... gxf6 {[%clk 0:00:50.1]} 36.
Kf3 {[%clk 0:00:38.4]} 36... f5 {[%clk 0:00:49]} 37. Ke2 {[%clk 0:00:35.6]}
37... Nb2 {[%clk 0:00:45.2]} 38. Kd2 {[%clk 0:00:35.6]} 38... Ke7 {[%clk
0:00:41.1]} 39. Kc2 {[%clk 0:00:36]} 39... Na4 {[%clk 0:00:40.8]} 40. Kd3 {[%clk
0:00:33.3]} 40... Kd6 {[%clk 0:00:38.9]} 41. g4 {[%clk 0:00:29.3]} 41... fxg4
{[%clk 0:00:34]} 42. Nxg4 {[%clk 0:00:31.2]} 42... h5 {[%clk 0:00:30.2]} 43. Nf6
{[%clk 0:00:31.4]} 43... Nb2+ {[%clk 0:00:30.9]} 44. Kd4 {[%clk 0:00:28.7]}
44... Nc4 {[%clk 0:00:30.4]} 45. Nxh5 {[%clk 0:00:30.1]} 45... Nxa3 {[%clk
0:00:31.5]} 46. Ng3 {[%clk 0:00:30.1]} 46... Nc2+ {[%clk 0:00:30.6]} 47. Kc3
{[%clk 0:00:30.8]} 47... Ne3 {[%clk 0:00:28.3]} 48. h5 {[%clk 0:00:31.3]} 48...
Ng4 {[%clk 0:00:29.6]} 49. Kd4 {[%clk 0:00:30]} 49... Nh6 {[%clk 0:00:29.1]} 50.
Ne4+ {[%clk 0:00:29.6]} 50... Ke7 {[%clk 0:00:28.7]} 51. Nc5 {[%clk 0:00:30.3]}
51... Kd6 {[%clk 0:00:25.2]} 52. Nxa6 {[%clk 0:00:29.4]} 52... Nf5+ {[%clk
0:00:26.5]} 53. Kd3 {[%clk 0:00:26.6]} 53... e5 {[%clk 0:00:27.6]} 54. fxe5+
{[%clk 0:00:25.7]} 54... Kxe5 {[%clk 0:00:29.5]} 55. Nc7 {[%clk 0:00:25.9]}
55... Ne7 {[%clk 0:00:28.6]} 56. h6 {[%clk 0:00:22.4]} 56... Kf6 {[%clk
0:00:29.3]} 57. Nxb5 {[%clk 0:00:13.4]} 57... Nc6 {[%clk 0:00:26.8]} 58. Nd4
{[%clk 0:00:10.5]} 58... Nxb4+ {[%clk 0:00:27.4]} 59. Ke4 {[%clk 0:00:11.9]}
59... Kg6 {[%clk 0:00:27.7]} 60. Nf5 {[%clk 0:00:13.5]} 60... Nc6 {[%clk
0:00:26.6]} 61. Kf4 {[%clk 0:00:14.7]} 61... Ne7 {[%clk 0:00:24.9]} 62. Nxe7+
{[%clk 0:00:14.6]} 62... Kxh6 {[%clk 0:00:26]} 1/2-1/2